bitfinex-derivatives/quotes_BTCF0:USTF0_20241025
["timestamp","ask_amount","ask_price","bid_price","bid_amount"]
[1729884803586,0.19544326,67088.0,67087.0,0.08727014]
[1729884804289,0.19544326,67088.0,67087.0,0.01035776]
[1729884804490,0.074671,67078.0,67077.0,0.232272]
[1729884804678,0.19545426,67078.0,67077.0,0.24274528]
[1729884804992,0.19545426,67078.0,67077.0,0.08514528]
[1729884805385,0.12078326,67078.0,67077.0,0.08514528]
[1729884805988,0.12078326,67078.0,67077.0,0.53238528]
[1729884807303,0.16191713,67082.0,67081.0,0.074674]
[1729884807590,0.05355125,67082.0,67081.0,0.55484971]
[1729884807798,0.12821425,67091.0,67081.0,1.00204971]
[1729884807983,0.12821425,67091.0,67081.0,0.55484971]
[1729884808390,0.05355125,67091.0,67090.0,0.074664]
[1729884809593,0.05355125,67091.0,67090.0,0.26871371]
[1729884809797,0.18815757,67098.0,67097.0,0.074656]
[1729884810093,0.05355125,67098.0,67097.0,0.074656]
[1729884810291,0.05355125,67099.0,67098.0,0.074655]
[1729884810494,0.05355125,67099.0,67098.0,0.04099035]
[1729884811187,0.05355125,67099.0,67087.0,0.5093]
[1729884811188,0.3608,67099.0,67087.0,0.3608]
[1729884811388,0.05354537,67098.0,67089.0,0.19404971]
[1729884811593,0.3608,67099.0,67098.0,0.074655]
[1729884812394,0.074652,67102.0,67097.0,0.05852857]
[1729884812593,0.01032193,67106.0,67099.0,0.11921159]
[1729884812794,0.01032193,67106.0,67090.0,0.19404971]
[1729884812795,0.3608,67107.0,67097.0,0.55484971]
[1729884812993,0.07465,67103.0,67102.0,0.07465]
[1729884813497,0.074646,67106.0,67105.0,0.074647]
[1729884813800,0.07465,67103.0,67102.0,0.07465]
[1729884814205,0.07465,67103.0,67102.0,0.11919963]
[1729884814393,0.07465,67103.0,67102.0,0.07465]
[1729884815096,0.435446,67107.0,67106.0,0.074646]
[1729884816006,0.074649,67104.0,67102.0,0.23858127]
[1729884816198,0.074649,67104.0,67102.0,0.19404971]
[1729884816799,0.074649,67104.0,67103.0,0.07465]
[1729884819211,0.220837,67115.0,67106.0,0.074646]
[1729884819212,0.074643,67109.0,67106.0,0.074646]
[1729884819416,0.074643,67109.0,67108.0,0.26869371]
[1729884820302,0.3712449,67113.0,67108.0,0.19404971]
[1729884820501,0.07464,67112.0,67111.0,0.07464]
[1729884820803,0.07464,67112.0,67108.0,0.19404971]
[1729884820804,0.074643,67109.0,67108.0,0.26869271]
[1729884821308,0.074643,67109.0,67108.0,0.074643]
[1729884823409,0.07465,67105.0,67104.0,0.074648]
[1729884824003,0.43545,67105.0,67104.0,0.074648]
[1729884824203,0.43545,67105.0,67104.0,0.01025809]
[1729884824405,0.074651,67103.0,67102.0,0.074649]
[1729884826304,0.074653,67100.0,67099.0,0.11916462]
[1729884826506,0.074653,67100.0,67099.0,0.0850694]
[1729884827510,0.074653,67100.0,67099.0,0.12958102]
[1729884827701,0.074653,67100.0,67099.0,0.0850694]
[1729884827904,0.074653,67100.0,67099.0,0.0104164]
[1729884828108,0.074653,67100.0,67099.0,0.074654]
[1729884828301,0.074649,67104.0,67103.0,0.074648]
[1729884828507,0.074649,67104.0,67103.0,0.11925369]
[1729884829412,0.074649,67104.0,67103.0,0.074648]
[1729884831612,0.3608,67113.0,67112.0,0.074639]
[1729884832615,0.435438,67113.0,67112.0,0.074639]
[1729884832925,0.074643,67109.0,67100.0,0.07418604]
[1729884833113,0.074649,67103.0,67102.0,0.044641]
[1729884833314,0.435449,67103.0,67102.0,0.044641]
[1729884833519,0.07465,67102.0,67101.0,0.044641]
[1729884833817,0.20373831,67102.0,67101.0,0.044641]
[1729884834016,0.20373831,67102.0,67098.0,0.074654]
[1729884834017,0.12908831,67102.0,67098.0,0.074654]
[1729884834212,0.074654,67099.0,67098.0,0.074654]
[1729884834413,0.35183931,67102.0,67101.0,0.074651]
[1729884834813,0.35183931,67102.0,67090.0,0.3608]
[1729884834814,0.79891931,67102.0,67090.0,0.3608]
[1729884835119,0.20374631,67095.0,67094.0,0.07689417]
[1729884835315,0.20374631,67095.0,67094.0,0.00223517]
[1729884835506,0.56454631,67095.0,67094.0,0.00223517]
[1729884836124,1.01166631,67095.0,67094.0,0.00223517]
[1729884836818,0.074667,67087.0,67086.0,0.08496749]
[1729884837013,0.20375531,67087.0,67086.0,0.08496749]
[1729884837907,0.20375531,67087.0,67086.0,0.01029949]
[1729884838107,0.20375531,67087.0,67084.0,0.3608]
[1729884838108,0.20375131,67091.0,67084.0,0.3608]
[1729884838316,0.074663,67091.0,67084.0,0.3608]
[1729884838612,0.07466,67094.0,67093.0,0.07466]
[1729884839207,0.074663,67091.0,67090.0,0.074663]
[1729884839612,0.074662,67092.0,67090.0,0.074664]
[1729884839818,0.3608,67095.0,67084.0,0.01016546]
[1729884840020,0.074666,67089.0,67088.0,0.074666]
[1729884840224,0.435466,67089.0,67088.0,0.074666]
[1729884840525,0.07467,67085.0,67084.0,0.07467]
[1729884840721,0.074673,67082.0,67063.0,0.12908831]
[1729884841016,0.07468,67075.0,67074.0,0.07691742]
[1729884841224,0.07468,67075.0,67074.0,0.08731279]
[1729884841412,0.07468,67075.0,67074.0,0.01263179]
[1729884841616,0.20376831,67075.0,67074.0,0.01263179]
[1729884842011,0.20376831,67075.0,67074.0,0.00223642]
[1729884842621,0.074689,67067.0,67056.0,0.14888704]
[1729884842821,0.074681,67074.0,67063.0,0.04463947]
[1729884843124,0.074694,67063.0,67051.0,0.05]
[1729884843324,0.435506,67052.0,67051.0,0.05]
[1729884843514,0.074709,67049.0,67048.0,0.04463947]
[1729884843716,0.074712,67046.0,67045.0,0.01038994]
[1729884843917,0.074715,67044.0,67043.0,0.04463947]
[1729884844135,0.20380331,67044.0,67043.0,0.04463947]
[1729884844313,0.19382766,67044.0,67032.0,0.04463947]
[1729884844513,0.796327,67033.0,67032.0,0.04463947]
[1729884844724,0.796327,67033.0,67029.0,0.08718827]
[1729884844725,0.07473,67030.0,67029.0,0.08718827]
[1729884845019,0.07473,67030.0,67029.0,0.01245727]
[1729884846318,0.07473,67030.0,67029.0,0.0102198]
[1729884846521,0.07473,67030.0,67027.0,0.074733]
[1729884846730,0.074733,67028.0,67027.0,0.074733]
[1729884846929,0.074735,67026.0,67022.0,0.074738]
[1729884847125,0.074735,67026.0,67024.0,0.074737]
[1729884848823,0.3608,67027.0,67026.0,0.074735]
[1729884849231,0.3608,67037.0,67027.0,0.074734]
[1729884849420,0.3608,67037.0,67033.0,0.19382766]
[1729884849724,0.3608,67037.0,67036.0,0.074724]
[1729884850226,0.3608,67037.0,67032.0,0.074727]
[1729884850418,0.435522,67037.0,67036.0,0.05]
[1729884850827,0.435522,67037.0,67024.0,0.074737]
[1729884850828,0.074734,67027.0,67024.0,0.074737]
[1729884851015,0.074735,67026.0,67024.0,0.074737]
[1729884851429,0.074736,67025.0,67024.0,0.074737]
[1729884851623,0.074738,67024.0,67022.0,0.00223787]
[1729884851830,0.3608,67028.0,67022.0,0.00223787]
[1729884851831,0.074738,67023.0,67022.0,0.00223787]
[1729884852921,0.074737,67025.0,67024.0,0.074736]
[1729884853228,0.00092,67030.0,67024.0,0.05]
[1729884853419,0.00092,67030.0,67029.0,0.62935866]
[1729884853623,0.1452,67045.0,67029.0,0.55462766]
[1729884853831,0.1452,67045.0,67037.0,0.3608]
[1729884853832,0.074716,67043.0,67037.0,0.3608]
[1729884854131,0.074719,67041.0,67039.0,0.07472]
[1729884854919,0.3608,67042.0,67036.0,0.3608]
[1729884855242,0.3608,67042.0,67032.0,0.15744]
[1729884855243,0.074721,67038.0,67037.0,0.074722]
[1729884856128,0.19382766,67041.0,67029.0,0.3608]
[1729884856329,0.3608,67042.0,67029.0,0.08479576]
[1729884856330,0.07473,67030.0,67029.0,0.08479576]
[1729884856523,0.07473,67030.0,67029.0,0.074731]
[1729884857928,0.3608,67036.0,67025.0,0.59847774]
[1729884858128,0.3608,67042.0,67035.0,0.3608]
[1729884858337,0.3608,67042.0,67040.0,0.074719]
[1729884858338,0.074718,67041.0,67040.0,0.074719]
[1729884859228,0.3608,67042.0,67035.0,0.3608]
[1729884859434,0.074718,67041.0,67035.0,0.3608]
[1729884859735,0.074723,67037.0,67035.0,0.435524]
[1729884860432,0.074723,67037.0,67036.0,0.074724]
[1729884860628,0.435518,67042.0,67039.0,0.07472]
[1729884861333,0.074719,67041.0,67039.0,0.07472]
[1729884862536,0.3608,67042.0,67035.0,0.01055767]
[1729884862747,0.074728,67032.0,67025.0,0.29353774]
[1729884863126,0.074728,67032.0,67026.0,0.3608]
[1729884863524,0.19382766,67031.0,67026.0,0.3608]
[1729884863729,0.19382766,67031.0,67025.0,0.01267365]
[1729884863928,0.3608,67036.0,67025.0,0.01267365]
[1729884863929,0.19382766,67026.0,67025.0,0.01267365]
[1729884864128,0.26856266,67026.0,67025.0,0.01267365]
[1729884864329,0.26856266,67026.0,67025.0,0.00223774]
[1729884865130,0.26856266,67026.0,67011.0,0.074749]
[1729884865437,0.074748,67012.0,67011.0,0.074749]
[1729884865832,0.074748,67012.0,67009.0,0.07475]
[1729884866033,0.074745,67015.0,67012.0,0.074747]
[1729884866328,0.19382766,67018.0,67012.0,0.074747]
[1729884866530,0.074746,67013.0,67012.0,0.074747]
[1729884867941,0.074749,67011.0,67009.0,0.04463947]
[1729884868137,0.19382766,67018.0,67010.0,0.3608]
[1729884868138,0.074741,67018.0,67010.0,0.3608]
[1729884868339,0.074739,67020.0,67017.0,0.074741]
[1729884868534,0.074739,67020.0,67017.0,0.074742]
[1729884868740,0.074739,67020.0,67018.0,0.07474]
[1729884868942,0.074739,67020.0,67019.0,0.07474]
[1729884869539,0.074742,67017.0,67015.0,0.04463947]
[1729884869846,0.0100628,67026.0,67015.0,0.04463947]
[1729884869847,0.074732,67026.0,67016.0,0.074743]
[1729884870049,0.19382766,67028.0,67015.0,0.04463947]
[1729884870050,0.074743,67016.0,67015.0,0.04463947]
[1729884870262,0.3608,67021.0,67013.0,0.074746]
[1729884870263,0.074744,67015.0,67013.0,0.074746]
[1729884870540,0.074744,67015.0,67014.0,0.074745]
[1729884870740,0.074744,67015.0,67014.0,0.11932704]
[1729884870935,0.074744,67015.0,67014.0,0.074745]
[1729884872646,0.074741,67014.0,67013.0,0.07418604]
[1729884872852,0.074741,67014.0,67013.0,0.17185208]
[1729884873037,0.074741,67014.0,67013.0,0.09766604]
[1729884873839,0.074741,67014.0,67013.0,0.17240904]
[1729884875944,0.074741,67014.0,67013.0,0.09766604]
[1729884876538,0.074741,67014.0,67012.0,0.074743]
[1729884876743,0.074741,67014.0,67013.0,0.09770847]
[1729884877344,0.074741,67014.0,67013.0,0.07448635]
[1729884877650,0.074741,67014.0,67012.0,0.14922935]
[1729884878343,0.074741,67014.0,67013.0,0.074743]
[1729884878540,0.5029,67027.0,67013.0,0.07448635]
[1729884878740,0.577627,67027.0,67026.0,0.04468686]
[1729884878943,0.69672766,67027.0,67024.0,0.04468686]
[1729884879146,0.19382766,67025.0,67022.0,0.04468686]
[1729884879342,0.074733,67022.0,67021.0,0.04468686]
[1729884879544,0.074733,67022.0,67018.0,0.3608]
[1729884879750,0.074736,67019.0,67018.0,0.3608]
[1729884882354,0.074745,67011.0,67010.0,0.3608]
[1729884883046,0.074745,67011.0,67010.0,0.435546]
[1729884885362,0.074745,67011.0,67010.0,0.51003235]
[1729884886056,0.074745,67011.0,67005.0,0.37572824]
[1729884886057,0.07475,67006.0,67005.0,0.07448635]
[1729884886352,0.1452,67020.0,67005.0,0.09717955]
[1729884886547,0.368135,67020.0,67013.0,0.04470293]
[1729884886747,0.074736,67019.0,67015.0,0.04470173]
[1729884886948,0.369015,67020.0,67015.0,0.04470173]
[1729884887146,0.368135,67020.0,67016.0,0.04470173]
[1729884887355,0.074738,67017.0,67016.0,0.04470173]
[1729884887655,0.074744,67012.0,67011.0,0.074745]
[1729884889861,0.129265,67018.0,67010.0,0.3608]
[1729884889862,0.074745,67011.0,67010.0,0.3608]
[1729884890053,0.074738,67017.0,67008.0,0.14925288]
[1729884890259,0.074738,67017.0,67016.0,0.04473527]
[1729884890462,0.129265,67018.0,67016.0,0.04473527]
[1729884890651,0.074738,67017.0,67016.0,0.04473527]
[1729884890851,0.074746,67010.0,67009.0,0.07450488]
[1729884891260,0.074746,67010.0,67009.0,0.17164701]
[1729884891455,0.129265,67013.0,67008.0,0.14933957]
[1729884891656,0.129265,67013.0,67008.0,0.07459157]
[1729884891657,0.074747,67009.0,67008.0,0.07459157]
[1729884891857,0.074748,67008.0,67007.0,0.07459157]
[1729884892362,0.074748,67008.0,67007.0,0.09728928]
[1729884894658,0.074748,67008.0,67007.0,0.09639591]
[1729884894860,0.3608,67014.0,67007.0,0.22566091]
[1729884895060,0.074744,67012.0,67010.0,0.3608]
[1729884895266,0.074744,67012.0,67011.0,0.09639591]
[1729884895572,0.074736,67019.0,67014.0,0.074741]
[1729884895860,0.074732,67023.0,67022.0,0.074732]
[1729884898661,0.074732,67023.0,67021.0,0.07467267]
[1729884898662,0.074733,67022.0,67021.0,0.07467267]
[1729884899056,0.074736,67019.0,67016.0,0.3608]
[1729884899263,0.129265,67018.0,67017.0,0.09573537]
[1729884899558,0.204002,67018.0,67017.0,0.09573537]
[1729884899767,0.204002,67018.0,67017.0,0.17038543]
[1729884899954,0.204002,67018.0,67017.0,0.24512343]
[1729884900357,0.074737,67018.0,67017.0,0.09573537]
[1729884901059,0.074737,67018.0,67017.0,0.17047337]
[1729884901260,0.074737,67018.0,67017.0,0.17038102]
[1729884902067,0.074737,67018.0,67017.0,0.18092012]
[1729884902364,0.074737,67018.0,67017.0,0.08507578]
[1729884902962,0.074737,67018.0,67017.0,0.01043013]
[1729884903170,0.074737,67018.0,67017.0,0.074738]
[1729884903567,0.074738,67017.0,67016.0,0.445947]
[1729884904272,0.074738,67017.0,67016.0,0.520686]
[1729884906160,0.074738,67017.0,67016.0,0.44604035]
[1729884906357,0.074738,67017.0,67016.0,0.520686]
[1729884906560,0.074738,67017.0,67016.0,0.44604035]
[1729884908261,0.074738,67017.0,67016.0,0.37130135]
[1729884909065,0.204003,67017.0,67016.0,0.37130135]
[1729884909463,0.651643,67017.0,67016.0,0.05971708]
[1729884909667,0.074739,67016.0,67015.0,0.04479012]
[1729884909867,0.074739,67016.0,67004.0,0.3608]
[1729884909868,0.074741,67015.0,67004.0,0.37124214]
[1729884910068,0.074752,67005.0,67004.0,0.37124214]
[1729884910874,0.204017,67005.0,67004.0,0.37124214]
[1729884912969,0.074749,67009.0,67004.0,0.37124214]
[1729884913177,0.074749,67009.0,67008.0,0.074748]
[1729884913374,0.074752,67005.0,67004.0,0.44599414]
[1729884915983,0.074752,67005.0,67004.0,0.37124214]
[1729884916276,0.204017,67005.0,67004.0,0.3608]
[1729884916476,0.204017,67005.0,67002.0,0.00223846]
[1729884916477,0.074754,67003.0,67002.0,0.00223846]
[1729884916668,0.204019,67003.0,67002.0,0.00223846]
[1729884917068,0.333284,67003.0,67002.0,0.00223846]
[1729884917386,0.204019,67003.0,67002.0,0.00223846]
[1729884918277,0.074751,67007.0,67006.0,0.07475]
[1729884918980,0.3608,67020.0,67015.0,0.074737]
[1729884918981,0.074739,67016.0,67015.0,0.074737]
[1729884919178,0.3608,67026.0,67015.0,0.490065]
[1729884919373,0.074733,67022.0,67020.0,0.074734]
[1729884919673,0.074733,67022.0,67021.0,0.435534]
[1729884920774,0.074738,67018.0,67017.0,0.074738]
[1729884920971,0.074745,67011.0,67010.0,0.23185624]
[1729884921171,0.20401,67011.0,67010.0,0.15728]
[1729884921376,0.20401,67011.0,67010.0,0.3608]
[1729884921576,0.20401,67011.0,67002.0,0.0768147]
[1729884921577,0.074749,67007.0,67002.0,0.0768147]
[1729884921782,0.204014,67007.0,67002.0,0.00223846]
[1729884921980,0.204019,67003.0,67002.0,0.00223846]
[1729884922387,0.781044,67003.0,67002.0,0.00223846]
[1729884922571,0.651779,67003.0,66992.0,0.3608]
[1729884922882,0.129265,66993.0,66984.0,0.07457624]
[1729884923183,0.074778,66981.0,66980.0,0.3608]
[1729884923390,0.074778,66981.0,66980.0,0.37133405]
[1729884923577,0.074778,66981.0,66980.0,0.44611305]
[1729884924179,0.074778,66981.0,66980.0,0.37133405]
[1729884925083,0.074778,66981.0,66973.0,0.43537624]
[1729884925281,0.07479,66971.0,66970.0,0.00223937]
[1729884925476,0.204055,66971.0,66970.0,0.00223937]
[1729884925683,0.564855,66971.0,66970.0,0.00223937]
[1729884926083,0.564855,66971.0,66964.0,0.3608]
[1729884926084,0.074796,66965.0,66964.0,0.3608]
[1729884927979,0.074791,66970.0,66967.0,0.074794]
[1729884928291,0.3608,66984.0,66969.0,0.19403333]
[1729884928585,0.3608,66984.0,66976.0,0.3608]
[1729884928586,0.074782,66979.0,66976.0,0.3608]
[1729884928980,0.3608,66984.0,66976.0,0.3608]
[1729884928981,0.074783,66977.0,66976.0,0.3608]
[1729884931185,0.074783,66977.0,66976.0,0.37090403]
[1729884931886,0.074779,66981.0,66980.0,0.074779]
[1729884932080,0.01016187,66994.0,66977.0,0.3608]
[1729884932277,0.074769,66990.0,66989.0,0.074769]
[1729884933091,0.074766,66992.0,66989.0,0.074769]
[1729884933384,0.3608,66997.0,66985.0,0.1497]
[1729884933582,0.07477,66989.0,66988.0,0.074771]
[1729884933789,0.19403333,66992.0,66984.0,0.3608]
[1729884933991,0.074774,66985.0,66984.0,0.3608]
[1729884935089,0.074774,66985.0,66984.0,0.37124434]
[1729884935488,0.435553,67004.0,66984.0,0.37124434]
[1729884935682,0.074765,66993.0,66991.0,0.074767]
[1729884935888,0.074767,66991.0,66990.0,0.074768]
[1729884936686,0.074774,66985.0,66984.0,0.37124434]
[1729884940090,0.074774,66985.0,66984.0,0.01044434]
[1729884940397,0.074781,66979.0,66978.0,0.3608]
[1729884941195,0.074784,66976.0,66975.0,0.074784]
[1729884941699,0.074784,66976.0,66975.0,0.0850343]
[1729884942786,0.074784,66976.0,66975.0,0.0102503]
[1729884942998,0.074784,66976.0,66975.0,0.074773]
[1729884943194,0.01016459,66987.0,66981.0,0.074762]
[1729884943396,0.074746,66996.0,66986.0,0.62959033]
[1729884943593,0.074746,66997.0,66994.0,0.3608]
[1729884943799,0.074747,66995.0,66994.0,0.3608]
[1729884944500,0.1488,67005.0,66994.0,0.3608]
[1729884944690,0.01034324,67007.0,67004.0,0.3608]
[1729884944889,0.26876933,67005.0,67004.0,0.3608]
[1729884945095,0.074747,66995.0,66994.0,0.3608]
[1729884947304,0.1487,67009.0,66994.0,0.3608]
[1729884947605,0.1487,67009.0,67007.0,0.3608]
[1729884947801,0.074735,67007.0,66994.0,0.3608]
[1729884948001,0.074746,66997.0,66994.0,0.3608]
[1729884948209,0.074746,66996.0,66994.0,0.3608]
[1729884948507,0.074746,66996.0,66994.0,0.37131513]
[1729884949505,0.26876833,67007.0,66994.0,0.37131513]
[1729884949506,0.074748,66995.0,66994.0,0.37131513]
[1729884956308,0.074748,66995.0,66994.0,0.50058682]
[1729884957113,0.074718,67021.0,67005.0,0.074735]
[1729884957310,0.2901,67025.0,67020.0,0.12927169]
[1729884957609,0.074719,67020.0,67019.0,0.3608]
[1729884958214,0.07469,67047.0,67019.0,1.0308292]
[1729884958410,0.074694,67043.0,67042.0,0.3608]
[1729884963402,0.074694,67043.0,67042.0,0.3712143]
[1729884966716,0.01030844,67052.0,67042.0,0.3712143]
[1729884966717,0.01030844,67052.0,67042.0,1.01245694]
[1729884966905,0.074682,67054.0,67052.0,0.074683]
[1729884967105,0.074672,67063.0,67053.0,0.3608]
[1729884967416,0.074672,67063.0,67062.0,0.3608]
[1729884967417,0.074671,67063.0,67062.0,0.3608]
[1729884969817,0.074652,67081.0,67062.0,0.55456264]
[1729884970013,0.074654,67079.0,67078.0,0.7216]
[1729884970608,0.26841664,67079.0,67078.0,0.7216]
[1729884971611,0.074654,67079.0,67078.0,0.7216]
[1729884971918,0.0103739,67081.0,67079.0,0.074653]
[1729884972119,0.074649,67084.0,67080.0,0.074653]
[1729884972425,0.074654,67079.0,67078.0,0.72244]
[1729884972720,0.074654,67079.0,67078.0,0.7216]
[1729884972913,0.3053,67088.0,67078.0,0.7216]
[1729884972914,0.1478,67088.0,67078.0,0.91536264]
[1729884973116,0.074645,67088.0,67087.0,0.3608]
[1729884973313,0.63666264,67103.0,67091.0,0.07464]
[1729884973515,0.72167666,67103.0,67102.0,0.3608]
[1729884974018,0.97499402,67103.0,67102.0,0.3608]
[1729884976117,0.52791402,67103.0,67102.0,0.3608]
[1729884976423,0.23341402,67103.0,67102.0,0.3608]
[1729884976611,0.39135791,67103.0,67102.0,0.07699038]
[1729884976813,0.33140723,67103.0,67102.0,0.07699038]
[1729884977422,0.33152555,67103.0,67102.0,0.07699038]
[1729884978321,0.13041402,67103.0,67102.0,0.07699038]
[1729884978721,0.0454,67103.0,67102.0,0.15161838]
[1729884979110,0.074622,67108.0,67107.0,0.074622]
[1729884979316,0.11805474,67108.0,67107.0,0.074622]
[1729884980012,0.074622,67108.0,67107.0,0.074622]
[1729884981018,0.074622,67108.0,67106.0,0.15656]
[1729884981221,0.074622,67108.0,67106.0,0.16928474]
[1729884981617,0.074622,67108.0,67107.0,0.15656]
[1729884983221,0.074622,67108.0,67106.0,0.01272474]
[1729884983222,0.074623,67107.0,67106.0,0.01272474]
[1729884983419,0.19376264,67114.0,67104.0,0.51736]
[1729884983619,0.26837764,67114.0,67113.0,0.3608]
[1729884986721,0.074615,67114.0,67113.0,0.3608]
[1729884988726,0.26837764,67114.0,67113.0,0.3608]
[1729884989228,0.074615,67114.0,67113.0,0.3608]
[1729884990027,0.01260944,67116.0,67105.0,0.074624]
[1729884990221,0.074625,67105.0,67104.0,0.3608]
[1729884990430,0.07463,67100.0,67095.0,0.3608]
[1729884990621,0.26839264,67100.0,67095.0,0.3608]
[1729884990822,0.07463,67100.0,67095.0,0.3608]
[1729884991028,0.1495,67115.0,67098.0,0.3608]
[1729884991232,0.074617,67112.0,67111.0,0.3608]
[1729884991631,0.34916264,67121.0,67111.0,0.3608]
[1729884991934,0.34916264,67121.0,67117.0,0.3608]
[1729884992122,0.074614,67115.0,67114.0,0.3608]
[1729884992630,0.19376264,67120.0,67114.0,0.3608]
[1729884992836,0.074614,67115.0,67114.0,0.3608]
[1729885006248,0.521614,67115.0,67114.0,0.3608]
[1729885006437,0.7051429,67115.0,67104.0,0.05894326]
[1729885006748,0.074626,67104.0,67103.0,0.01287276]
[1729885006956,0.12907145,67105.0,67100.0,0.00223501]
[1729885007143,0.20370045,67101.0,67100.0,0.00223501]
[1729885007446,0.3608,67107.0,67103.0,0.074626]
[1729885007643,0.3608,67107.0,67100.0,0.00223501]
[1729885007644,0.074624,67106.0,67105.0,0.13427046]
[1729885007943,0.074624,67106.0,67105.0,0.074625]
[1729885008352,0.07462,67110.0,67108.0,0.074621]
[1729885008546,0.07462,67110.0,67109.0,0.07462]
[1729885008950,0.1526,67114.0,67108.0,0.0745642]
[1729885009251,0.07462,67109.0,67108.0,0.0745642]
[1729885009848,0.074621,67108.0,67107.0,0.4353642]
[1729885010345,0.074621,67108.0,67107.0,0.3608]
[1729885011146,0.074621,67108.0,67107.0,0.5835642]
[1729885011548,0.074621,67108.0,67107.0,0.673972]
[1729885011750,0.074621,67108.0,67107.0,0.6581872]
[1729885011948,0.01313448,67114.0,67107.0,0.509]
[1729885011949,0.074618,67111.0,67107.0,0.509]
[1729885012137,0.074618,67111.0,67107.0,0.5963543]
[1729885012342,0.01313448,67114.0,67107.0,0.5963543]
[1729885012552,0.074617,67112.0,67111.0,0.05965204]
[1729885013845,0.53447895,67112.0,67105.0,0.05965344]
[1729885014040,0.074628,67102.0,67100.0,0.06188845]
[1729885014252,0.074629,67101.0,67100.0,0.00223501]
[1729885015247,0.521709,67101.0,67100.0,0.00223501]
[1729885015445,0.074629,67101.0,67100.0,0.00223501]
[1729885016253,1.121709,67101.0,67097.0,0.05965344]
[1729885016461,0.074649,67083.0,67079.0,0.0745642]
[1729885016643,0.19357842,67080.0,67076.0,0.4353642]
[1729885016951,0.19357842,67080.0,67072.0,0.0745642]
[1729885016952,0.074657,67076.0,67072.0,0.0745642]
[1729885017155,0.3608,67079.0,67069.0,0.0745642]
[1729885017351,0.3608,67079.0,67067.0,0.36303664]
[1729885017752,0.074666,67068.0,67067.0,0.36303664]
[1729885019051,0.074666,67068.0,67067.0,0.00223664]
[1729885019448,0.435466,67068.0,67067.0,0.00223664]
[1729885020950,0.796266,67068.0,67067.0,0.00223664]
[1729885021355,0.435466,67068.0,67067.0,0.00223664]
[1729885021655,0.074665,67070.0,67067.0,0.44955664]
[1729885021856,0.36176,67079.0,67067.0,0.44955664]
[1729885021857,0.55533842,67079.0,67067.0,0.36303664]
[1729885022059,0.55533842,67079.0,67067.0,0.00223664]
[1729885022060,0.074666,67068.0,67067.0,0.00223664]
[1729885024765,0.074682,67054.0,67053.0,0.3608]
[1729885025060,0.074682,67054.0,67053.0,0.37334617]
[1729885025255,0.074682,67054.0,67053.0,0.01254617]
[1729885025457,0.074682,67054.0,67049.0,0.370587]
[1729885026557,0.074682,67054.0,67050.0,0.074686]
[1729885026863,0.074684,67052.0,67050.0,0.074686]
[1729885030161,0.3608,67057.0,67049.0,0.30864078]
[1729885030362,0.074686,67050.0,67049.0,0.30864078]
[1729885031763,0.074673,67062.0,67049.0,2.13525864]
[1729885032065,0.074673,67062.0,67061.0,0.3608]
[1729885034263,0.074673,67062.0,67061.0,0.435474]
[1729885035159,0.074673,67062.0,67061.0,0.3608]
[1729885035766,0.26825142,67062.0,67061.0,0.3608]
[1729885035967,0.074673,67062.0,67061.0,0.3608]
[1729885036163,0.26825142,67062.0,67061.0,0.3608]
[1729885037460,0.074673,67062.0,67061.0,0.3608]
[1729885037870,0.26825142,67062.0,67061.0,0.3608]
[1729885038170,0.074673,67062.0,67061.0,0.3608]
[1729885038376,0.20382809,67062.0,67061.0,0.3608]
[1729885039072,0.074686,67050.0,67049.0,0.36164]
[1729885039267,0.20384109,67050.0,67049.0,0.3608]
[1729885045170,0.074689,67048.0,67047.0,0.36303687]
[1729885045373,0.074689,67048.0,67047.0,0.40740851]
[1729885045573,0.074689,67048.0,67047.0,0.36303687]
[1729885045962,0.074689,67048.0,67047.0,0.40740851]
[1729885046167,0.074689,67048.0,67047.0,0.36303687]
[1729885048773,0.074689,67048.0,67047.0,0.43772687]
[1729885050167,0.074689,67048.0,67047.0,0.36303687]
[1729885052773,0.435484,67052.0,67047.0,0.93963196]
[1729885052972,0.1906681,67117.0,67064.0,0.074671]
[1729885052973,0.12915509,67072.0,67064.0,0.074671]
[1729885053280,0.5012,67073.0,67068.0,0.074666]
[1729885053281,0.074666,67069.0,67068.0,0.074666]
[1729885053578,0.074663,67071.0,67070.0,0.074663]
[1729885053882,0.074663,67071.0,67070.0,0.3608]
[1729885054776,0.074655,67078.0,67066.0,0.0745069]
[1729885054777,0.12915509,67074.0,67066.0,0.0745069]
[1729885054981,0.12915509,67074.0,67064.0,0.5099779]
[1729885055170,0.07467,67065.0,67064.0,0.44851874]
[1729885056573,0.0128731,67078.0,67065.0,0.074669]
[1729885056775,0.074642,67091.0,67089.0,0.074642]
[1729885056978,0.074642,67091.0,67089.0,0.56459709]
[1729885057173,0.074642,67090.0,67089.0,0.48995509]
[1729885057476,0.074642,67090.0,67089.0,0.40540713]
[1729885057686,0.074642,67090.0,67089.0,0.3608]
[1729885057887,0.20379709,67090.0,67089.0,0.3608]
[1729885059078,0.20379709,67090.0,67088.0,0.04458047]
[1729885059079,0.20379709,67090.0,67088.0,0.04457848]
[1729885059280,0.12915509,67089.0,67083.0,0.04457848]
[1729885059579,0.074651,67082.0,67080.0,0.40537848]
[1729885059883,0.12915509,67081.0,67080.0,0.40537848]
[1729885060179,0.12915509,67081.0,67080.0,0.48003148]
[1729885060679,0.20380709,67081.0,67080.0,0.435453]
[1729885060868,0.074653,67080.0,67077.0,0.04457848]
[1729885061177,0.074657,67077.0,67075.0,0.0468144]
[1729885061378,0.074657,67076.0,67075.0,0.00223592]
[1729885062178,0.074676,67060.0,67057.0,0.3608]
[1729885062372,0.33296718,67076.0,67057.0,0.3608]
[1729885062373,0.12915509,67058.0,67057.0,0.435478]
[1729885064273,0.26836194,67061.0,67057.0,0.3608]
[1729885064484,0.26836194,67061.0,67058.0,0.074676]
[1729885064787,0.26836194,67061.0,67059.0,0.074676]
[1729885067181,0.3608,67076.0,67057.0,0.37372478]
[1729885067383,0.074668,67066.0,67065.0,0.3608]